{"text_format":"3","workbook":"xlsx","n_sheets":4,"sheets":["Organisasjonshistorie","Kartlegging","Allment arkivskjema","Rapport"],"not_rendered":{"images":1,"comments":2},"read":"whole","date_system":"1900"}

{"sheet":"Organisasjonshistorie","index":0,"n_rows":11,"n_cols":8,"rows_kept":11,"merged":[[0,0,1,2],[4,0,4,2],[4,3,4,4],[4,6,4,7]]}
[{"$nulls":3},"Kartleggingsskjema, sektorprosjekt, universiteter og vitenskaplige høgskoler"]
[{"$nulls":3},"Bevaring og kassasjonskartlegging"]
[{"$nulls":3},2013]
["Institusjon:",null,null,"Adm. Enhet",null,"Dato:","Vurderer:"]
["Universitetet i Oslo",null,null,"UV - ISP",null,{"$f":"TODAY()","v":"2014-01-22"},"Petter Olav Haraldsvik"]
["Arkivskapende enheter:"]
["Nivå","Navn","Opprettet:","Nedlagt:","Forløpere:","Etterkommere:","Funksjon:","Kommentar"]
["X","Statens spesiallærerskole",1961,1973,"2 tidligere utdanningstradisjoner","Statens spesiallærerhøgskole","A - U - F - Fo","Skolen var en forlengelse av Lærerutdanning  ved statlige spesialskoler rettet mot funksjonshemmede fra 1900 tallet og kurstradisjon for lærere i den såkalte normalskolen"]
["x","Statens spesiallærerhøgskole",1974,1990,"Statens spesiallærerskole","Institutt for spesialpedagogikk","A - U - F - Fo"]
["I","Institutt for spesialpedagogikk",1991,1995,"Statens spesiallærerhøgskole",null,"A - U - F - Fo","Instituttet ble tilknyttet UiO som en selvstendig enhet under Kollegiet"]
["I","Institutt for spesialpedagogikk",1996,{"$nulls":3},"A - U - F - Fo","Instituttet ble tilknyttet Det Utdanningsvitenskapelige fakultet"]

{"sheet":"Kartlegging","index":1,"n_rows":237,"n_cols":18,"rows_kept":237}
[null,"Kartleggingsskjema, sektorprosjekt, universiteter og vitenskaplige høgskoler"]
[null,"Bevaring og kassasjonskartlegging",{"$nulls":9},"totalt HM"]
[null,2013,{"$nulls":9},{"$f":"SUM(L5:L2179)","v":{"v":25.28,"d":"25.3"}}]
["Enhet","Arkivskjema","Serier","Ordningsprinsipp","Funksjon","Vurdering","År-fra","År-til","HM","Plassering","Kommentar",null,"Saksbehandling","Hva mottar arkivskaper","Hva produserer arkivskaper","Redundans","Oppbevaringsbehov","Kommentar"]
[{"$f":"Organisasjonshistorie!B8","v":"Statens spesiallærerskole"},"B","Kopibøker","Kronologisk","A","B",1967,1973,{"v":0.23,"d":"0.2"},"K43","Innbundet 7 stk"]
[null,"C","Brevjournal","Kronologisk","A","B",1962,1969,0.4,"K43","2 permer"]
[null,"D","Klasse 0 -2","Uklart","A","F",1961,1973,{"v":1.55,"d":"1.6"},"K43","Må gjennomgås"]
[null,"D","Klasse 3 Studie ","Uklart","A -F -U","V",1961,1973,0.6,"K43","Må  gjennomgås"]
{"$rows_empty":7}
[{"$nulls":7},"Totalt",{"$f":"SUM(I5:I15)","v":{"v":2.7800000000000002,"d":"2.8"}},null,null,{"$f":"I16","v":{"v":2.7800000000000002,"d":"2.8"}}]
["Enhet","Arkivskjema","Serier","Ordningsprinsipp","Funksjon","Vurdering","År-fra","År-til","HM","Plassering",null,null,"Saksbehandling","Hva mottar arkivskaper","Hva produserer arkivskaper","Redundans","Oppbevaringsbehov","Kommentar"]
[{"$f":"Organisasjonshistorie!B9","v":"Statens spesiallærerhøgskole"},"A","Diverse råd/styreprokoller","Kronologisk","A","B",1976,1991,{"v":0.78,"d":"0.8"},"K43","Ringpermer 1 eske"]
[null,"B","Kopibøker","Kronologisk","A","B",1974,1991,{"v":1.25,"d":"1.3"},"K43","18 Ringpermer"]
[null,"B","Kopibøker","Kronologisk","A","B",1988,1992,{"v":0.05,"d":"0.1"},"K43","Ringperm Studieutvalget"]
[null,"C","Brevjournal","Kronologisk","A","B",1971,1985,"0.1","K43","Innbundet 3 stk"]
[null,"D","Klasse 0 -2","Arkivnøkkel","A","F",1974,1990,{"v":1,"d":"1.0"},"K43","Må gjennomgås"]
[null,"D","Klasse 3 -5 Studie forskning","Arkivnøkkel","A - F - U","V",1974,1990,0.5,"K43","Må gjennomgås"]
[]
[]
[]
[]
[]
[{"$nulls":7},"Totalt",{"$f":"SUM(I18:I28)","v":{"v":3.58,"d":"3.6"}},null,null,{"$f":"I29","v":{"v":3.58,"d":"3.6"}}]
["Enhet","Arkivskjema","Serier","Ordningsprinsipp","Funksjon","Vurdering","År-fra","År-til","HM","Plassering",null,null,"Saksbehandling","Hva mottar arkivskaper","Hva produserer arkivskaper","Redundans","Oppbevaringsbehov","Kommentar"]
[{"$f":"Organisasjonshistorie!B10","v":"Institutt for spesialpedagogikk"},"A","Diverse råd/styreprotokoller","Kronologisk","A","B",1990,2000,{"v":1.98,"d":"2.0"},"K43","Ikke periodisert"]
[null,"D","Klasse 0 - 2","Arkivnnøkkel","A","F",1991,1995,1.4,"K43"]
[null,"D","Klasse 3 Undervisning","Arkivnnøkkel","A - U","V",1991,1995,0.6,"K43"]
[null,"D","Klasse 4 Forskning","Arkivnnøkkel","A - F - U","V",1991,1995,0.3,"K43"]
[null,"D","Klasse 5 studentopptak","Arkivnnøkkel","A - F - U","V",1991,1995,0.3,"K43"]
[null,"D","Klasse 6 Studieforhold","Arkivnnøkkel","A - U","V",1991,1995,0.1,"K43"]
[]
[]
[]
[]
[]
[{"$nulls":7},"Totalt",{"$f":"SUM(I31:I41)","v":{"v":4.68,"d":"4.7"}},null,null,{"$f":"I42","v":{"v":4.68,"d":"4.7"}}]
["Enhet","Arkivskjema","Serier","Ordningsprinsipp","Funksjon","Vurdering","År-fra","År-til","HM","Plassering"]
[{"$f":"Organisasjonshistorie!B11","v":"Institutt for spesialpedagogikk"},"A","Diverse råd/styreprotokoller","Kronologisk","A","B",1997,1998,0.2,"K43"]
[null,"A","Instituttstyre","Kronologisk","A","B",1996,2009,0.2,"K43","Ikke periodisert"]
[null,"C","Arkivjournal","Kronologisk","A","B",1996,1999,"0.1","K43"]
[null,"D","Klasse 2 Personal","Arkivnøkkel","A","F",1996,1999,0.4,"K43"]
[null,"D","Klasse 3 Studie","Arkivnøkkel","A - U","V",1996,1999,0.8,"K43"]
[{"$nulls":10},"Fra 1.6.1999 felles arkiv"]
[{"$nulls":10},"med UV- fakultetet"]
[]
[]
[]
[]
[{"$nulls":7},"Totalt",{"$f":"SUM(I44:I54)","v":1.6},null,null,{"$f":"I55","v":1.6}]
["Enhet","Arkivskjema","Serier","Ordningsprinsipp","Funksjon","Vurdering","År-fra","År-til","HM","Plassering","Totalt",{"$f":"I55+I42+I29+I16","v":{"v":12.64,"d":"12.6"}}]
[{"$f":"Organisasjonshistorie!B12","v":0}]
{"$rows_empty":10}
[{"$nulls":7},"Totalt",{"$f":"SUM(I57:I67)","v":{"v":0,"d":"0.0"}},null,null,{"$f":"I68","v":{"v":0,"d":"0.0"}}]
["Enhet","Arkivskjema","Serier","Ordningsprinsipp","Funksjon","Vurdering","År-fra","År-til","HM","Plassering"]
[{"$f":"Organisasjonshistorie!B13","v":0}]
{"$rows_empty":10}
[{"$nulls":7},"Totalt",{"$f":"SUM(I70:I80)","v":{"v":0,"d":"0.0"}},null,null,{"$f":"I81","v":{"v":0,"d":"0.0"}}]
["Enhet","Arkivskjema","Serier","Ordningsprinsipp","Funksjon","Vurdering","År-fra","År-til","HM","Plassering"]
[{"$f":"Organisasjonshistorie!B14","v":0}]
{"$rows_empty":10}
[{"$nulls":7},"Totalt",{"$f":"SUM(I83:I93)","v":{"v":0,"d":"0.0"}},null,null,{"$f":"I94","v":{"v":0,"d":"0.0"}}]
["Enhet","Arkivskjema","Serier","Ordningsprinsipp","Funksjon","Vurdering","År-fra","År-til","HM","Plassering"]
[{"$f":"Organisasjonshistorie!B15","v":0}]
{"$rows_empty":10}
[{"$nulls":7},"Totalt",{"$f":"SUM(I96:I106)","v":{"v":0,"d":"0.0"}},null,null,{"$f":"I107","v":{"v":0,"d":"0.0"}}]
["Enhet","Arkivskjema","Serier","Ordningsprinsipp","Funksjon","Vurdering","År-fra","År-til","HM","Plassering"]
[{"$f":"Organisasjonshistorie!B16","v":0}]
{"$rows_empty":10}
[{"$nulls":7},"Totalt",{"$f":"SUM(I109:I119)","v":{"v":0,"d":"0.0"}},null,null,{"$f":"I120","v":{"v":0,"d":"0.0"}}]
["Enhet","Arkivskjema","Serier","Ordningsprinsipp","Funksjon","Vurdering","År-fra","År-til","HM","Plassering"]
[{"$f":"Organisasjonshistorie!B17","v":0}]
{"$rows_empty":10}
[{"$nulls":7},"Totalt",{"$f":"SUM(I122:I132)","v":{"v":0,"d":"0.0"}},null,null,{"$f":"I133","v":{"v":0,"d":"0.0"}}]
["Enhet","Arkivskjema","Serier","Ordningsprinsipp","Funksjon","Vurdering","År-fra","År-til","HM","Plassering"]
[{"$f":"Organisasjonshistorie!B18","v":0}]
{"$rows_empty":10}
[{"$nulls":7},"Totalt",{"$f":"SUM(I135:I145)","v":{"v":0,"d":"0.0"}},null,null,{"$f":"I146","v":{"v":0,"d":"0.0"}}]
["Enhet","Arkivskjema","Serier","Ordningsprinsipp","Funksjon","Vurdering","År-fra","År-til","HM","Plassering"]
[{"$f":"Organisasjonshistorie!B19","v":0}]
{"$rows_empty":10}
[{"$nulls":7},"Totalt",{"$f":"SUM(I148:I158)","v":{"v":0,"d":"0.0"}},null,null,{"$f":"I159","v":{"v":0,"d":"0.0"}}]
["Enhet","Arkivskjema","Serier","Ordningsprinsipp","Funksjon","Vurdering","År-fra","År-til","HM","Plassering"]
[{"$f":"Organisasjonshistorie!B20","v":0}]
{"$rows_empty":10}
[{"$nulls":7},"Totalt",{"$f":"SUM(I161:I171)","v":{"v":0,"d":"0.0"}},null,null,{"$f":"I172","v":{"v":0,"d":"0.0"}}]
["Enhet","Arkivskjema","Serier","Ordningsprinsipp","Funksjon","Vurdering","År-fra","År-til","HM","Plassering"]
[{"$f":"Organisasjonshistorie!B21","v":0}]
{"$rows_empty":10}
[{"$nulls":7},"Totalt",{"$f":"SUM(I174:I184)","v":{"v":0,"d":"0.0"}},null,null,{"$f":"I185","v":{"v":0,"d":"0.0"}}]
["Enhet","Arkivskjema","Serier","Ordningsprinsipp","Funksjon","Vurdering","År-fra","År-til","HM","Plassering"]
[{"$f":"Organisasjonshistorie!B22","v":0}]
{"$rows_empty":10}
[{"$nulls":7},"Totalt",{"$f":"SUM(I187:I197)","v":{"v":0,"d":"0.0"}},null,null,{"$f":"I198","v":{"v":0,"d":"0.0"}}]
["Enhet","Arkivskjema","Serier","Ordningsprinsipp","Funksjon","Vurdering","År-fra","År-til","HM","Plassering"]
[{"$f":"Organisasjonshistorie!B23","v":0}]
{"$rows_empty":10}
[{"$nulls":7},"Totalt",{"$f":"SUM(I200:I210)","v":{"v":0,"d":"0.0"}},null,null,{"$f":"I211","v":{"v":0,"d":"0.0"}}]
["Enhet","Arkivskjema","Serier","Ordningsprinsipp","Funksjon","Vurdering","År-fra","År-til","HM","Plassering"]
[{"$f":"Organisasjonshistorie!B24","v":0}]
{"$rows_empty":10}
[{"$nulls":7},"Totalt",{"$f":"SUM(I213:I223)","v":{"v":0,"d":"0.0"}},null,null,{"$f":"I224","v":{"v":0,"d":"0.0"}}]
["Enhet","Arkivskjema","Serier","Ordningsprinsipp","Funksjon","Vurdering","År-fra","År-til","HM","Plassering"]
[{"$f":"Organisasjonshistorie!B25","v":0}]
{"$rows_empty":10}
[{"$nulls":7},"Totalt",{"$f":"SUM(I226:I236)","v":{"v":0,"d":"0.0"}},null,null,{"$f":"I237","v":{"v":0,"d":"0.0"}}]

{"sheet":"Allment arkivskjema","index":2,"n_rows":19,"n_cols":2,"rows_kept":19}
["Allment arkivskjema"]
[]
["A","Møteboker, referatprotokoller, forhandlingsprotokoller og lignende"]
["B","Kopibøker"]
["C","Journaler og andre overgripende registre"]
["D","Saks- og korrespondansearkiv etter organets hovedsystem"]
["E","Saks- og korrespondansearkiv ordnet etter eventuelle andre, sideordnede system"]
["F - O","Spesialserier innenfor hver enkelt arkivskapers fagområde"]
["P","Personalforvaltning"]
["Q","Eiendomsforvaltning"]
["R","Regnskap"]
["S","Statistikk"]
["T","Kart og tegninger"]
["U","Foto, film og lydopptak"]
["V","EDB og mikrofilm"]
["W","Gjenstander"]
["X","Egenproduserte trykksaker"]
["Y","Andre utskilte arkivdeler, diverse"]
["Z","Referansemateriell"]

{"sheet":"Rapport","index":3,"n_rows":1,"n_cols":1,"rows_kept":1}
["asta1995"]